Department Family,Entity,Date Paid,Expense Type,Expense Area,Supplier,Transaction Number,AP Amount
Department of Health,East London NHS Foundation Trust,01/02/2019,Audit Fees: Ext non-stat,TH Neighbourhood Care Team,FRONTIER ECONOMICS LTD,29442674,"29,970.00"
Department of Health,East London NHS Foundation Trust,01/02/2019,Barts Payroll SLA,Corporate Directorate,BARTS HEALTH NHS TRUST,29265524,"87,925.00"
Department of Health,East London NHS Foundation Trust,01/02/2019,Rent,EF Vicarage Lane Estates,COMMUNITY HEALTH PARTNERSHIPS LTD,29364080,"81,327.89"
Department of Health,East London NHS Foundation Trust,01/02/2019,Rent,EF Beaumont House,COMMUNITY HEALTH PARTNERSHIPS LTD,29364082,"110,562.76"
Department of Health,East London NHS Foundation Trust,01/02/2019,Rent,EF East Ham Care Centre,COMMUNITY HEALTH PARTNERSHIPS LTD,29364084,"108,372.25"
Department of Health,East London NHS Foundation Trust,01/02/2019,Rent,EF Centre Manor Park,COMMUNITY HEALTH PARTNERSHIPS LTD,29364086,"52,331.68"
Department of Health,East London NHS Foundation Trust,01/02/2019,Rent,EF East Ham Care Centre,COMMUNITY HEALTH PARTNERSHIPS LTD,29364088,"381,379.96"
Department of Health,East London NHS Foundation Trust,01/02/2019,Capital Charges,EF Barts SLA - Mile End,BARTS HEALTH NHS TRUST,29265445,"229,447.69"
Department of Health,East London NHS Foundation Trust,01/02/2019,Capital Charges,EF Barts SLA - Mile End,BARTS HEALTH NHS TRUST,29265447,"68,685.84"
Department of Health,East London NHS Foundation Trust,01/02/2019,SLA Charges,Pharmacy Department,NHS BUSINESS SERVICES AUTHORITY,29265501,"106,757.96"
Department of Health,East London NHS Foundation Trust,01/02/2019,Capital Charges,Newham Directorate,BARTS HEALTH NHS TRUST,29363912,"171,570.32"
Department of Health,East London NHS Foundation Trust,01/02/2019,Capital Charges,Bedfordshire Directorate,CAMBRIDGESHIRE COMMUNITY SERVICES,29419303,"1,072,928.43"
Department of Health,East London NHS Foundation Trust,01/02/2019,Capital Charges,Bedfordshire Directorate,CAMBRIDGESHIRE COMMUNITY SERVICES,29419305,"131,648.33"
Department of Health,East London NHS Foundation Trust,06/02/2019,Computer Software/License,Bedfordshire Directorate,SELENITY LTD,29506781,"27,404.40"
Department of Health,East London NHS Foundation Trust,08/02/2019,Legal / Prof Fees,SBS Procurement,ON THE LEVEL PR LTD,29309396,"52,985.71"
Department of Health,East London NHS Foundation Trust,08/02/2019,SLA Charges,Bedfordshire Directorate,G4S FACILITIES MANAGEMENT (UK) LTD,29523843,"328,169.24"
Department of Health,East London NHS Foundation Trust,08/02/2019,Computer Software/License,ICT Team,TRUSTMARQUE SOLUTIONS LTD,29157689,"96,768.00"
Department of Health,East London NHS Foundation Trust,13/02/2019,Building works,Estates,T&B (CONTRACTORS) LTD,29565292,"192,217.20"
Department of Health,East London NHS Foundation Trust,13/02/2019,Capital Charges,Estates,G4S FACILITIES MANAGEMENT (UK) LTD,29335279,"208,631.98"
Department of Health,East London NHS Foundation Trust,13/02/2019,Capital Charges,EF CH and Newham Comm Facil,G4S FACILITIES MANAGEMENT (UK) LTD,29396051,"56,915.63"
Department of Health,East London NHS Foundation Trust,13/02/2019,SLA Charges,CHN Directorate,PATIENT FIRST SOCIAL ENTERPRISE,30087898,"61,500.00"
Department of Health,East London NHS Foundation Trust,13/02/2019,Capital Charges,Estates,GH NEWHAM LTD,29536545,"485,838.39"
Department of Health,East London NHS Foundation Trust,13/02/2019,Computer Hardware Purch,ICT Team,INSIGHT DIRECT (UK) LTD,29382530,"46,915.96"
Department of Health,East London NHS Foundation Trust,15/02/2019,Computer Hardware Purch,Tower Hamlets CHS IT,BARTS HEALTH NHS TRUST,27769661,"32,256.00"
Department of Health,East London NHS Foundation Trust,15/02/2019,Rates,EF Alie Street,LONDON BOROUGH OF TOWER HAMLETS,29802953,"27,335.00"
Department of Health,East London NHS Foundation Trust,15/02/2019,Rates,EF Alie Street,LONDON BOROUGH OF TOWER HAMLETS,29802946,"33,103.95"
Department of Health,East London NHS Foundation Trust,15/02/2019,SLA Charges,Pharmacy Department,NHS BUSINESS SERVICES AUTHORITY,29565703,"114,150.47"
Department of Health,East London NHS Foundation Trust,15/02/2019,Rent,Estates,COMMUNITY HEALTH PARTNERSHIPS LTD,29506782,"31,899.96"
Department of Health,East London NHS Foundation Trust,15/02/2019,Clinical SLA,Medical Director,HOMERTON UNIVERSITY HOSPITAL NHS FOUNDATION TRUST,29506945,"28,835.48"
Department of Health,East London NHS Foundation Trust,15/02/2019,Legal / Prof Fees,Corporate Directorate,HEMPSONS,29601311,"39,576.79"
Department of Health,East London NHS Foundation Trust,20/02/2019,Drug Supplies,Pharmacy Department,JANSSEN CILAG LTD,29580463,"38,185.15"
Department of Health,East London NHS Foundation Trust,20/02/2019,SLA Charges,CHN Directorate,PATIENT FIRST SOCIAL ENTERPRISE,29620102,"61,500.00"
Department of Health,East London NHS Foundation Trust,20/02/2019,Computer Software/License,RIO team,SERVELEC HEALTHCARE LTD,29645571,"29,748.00"
Department of Health,East London NHS Foundation Trust,20/02/2019,Furniture & Fittings,Estates,REMTEC,29442730,"26,210.00"
Department of Health,East London NHS Foundation Trust,22/02/2019,CAMHS,Bedfordshire Directorate,CHUMS,29309032,"49,650.00"
Department of Health,East London NHS Foundation Trust,22/02/2019,Photocopying costs,Corporate Directorate,XEROX (UK) LTD,29601525,"66,423.71"
Department of Health,East London NHS Foundation Trust,22/02/2019,Photocopying costs,Corporate Directorate,XEROX (UK) LTD,29601528,"32,010.73"
Department of Health,East London NHS Foundation Trust,22/02/2019,SLA Charges,Estates,G4S FACILITIES MANAGEMENT (UK) LTD,29620251,"328,169.24"
Department of Health,East London NHS Foundation Trust,22/02/2019,Building works,Estates,BARRY MORGAN LTD,29639973,"25,925.00"
Department of Health,East London NHS Foundation Trust,27/02/2019,CAMHS,Bedfordshire Directorate,CHUMS,29585869,"49,650.00"
Department of Health,East London NHS Foundation Trust,27/02/2019,Rent,City and Hackney Directorate,LOOK AHEAD CARE & SUPPORT LTD,29601417,"78,664.42"
Department of Health,East London NHS Foundation Trust,27/02/2019,Travel costs,Corporate Directorate,CORPORATE TRAVEL MANAGEMENT NORTH LTD,29601533,"37,643.55"
Department of Health,East London NHS Foundation Trust,27/02/2019,Med & Surg Equip Repair,CHB - Wheelchairs Service,MILLBROOK HEALTHCARE LTD,29713429,"36,442.54"
Department of Health,East London NHS Foundation Trust,01/03/2019,SLA Charges,Estates,RYDON MAINTENANCE LTD,29645591,"55,768.18"
Department of Health,East London NHS Foundation Trust,01/03/2019,Training Expenses,Quality Improvement Plan,INSTITUTE FOR HEALTHCARE IMPROVEMENT,29717004,"50,000.00"
Department of Health,East London NHS Foundation Trust,01/03/2019,Rent,EF East Ham Care Centre,COMMUNITY HEALTH PARTNERSHIPS LTD,29620129,"104,475.29"
Department of Health,East London NHS Foundation Trust,01/03/2019,Rent,EF Beaumont House,COMMUNITY HEALTH PARTNERSHIPS LTD,29674406,"110,562.76"
Department of Health,East London NHS Foundation Trust,01/03/2019,Rent,EF Centre Manor Park,COMMUNITY HEALTH PARTNERSHIPS LTD,29674410,"52,331.68"
Department of Health,East London NHS Foundation Trust,01/03/2019,Rent,EF Vicarage Lane Estates,COMMUNITY HEALTH PARTNERSHIPS LTD,29674415,"81,327.89"
Department of Health,East London NHS Foundation Trust,01/03/2019,Rent,EF East Ham Care Centre,COMMUNITY HEALTH PARTNERSHIPS LTD,29674419,"381,379.96"
Department of Health,East London NHS Foundation Trust,01/03/2019,Training Expenses,Quality Improvement Plan,INSTITUTE FOR HEALTHCARE IMPROVEMENT,29717004,"50,000.00"
Department of Health,East London NHS Foundation Trust,01/03/2019,Computer Software/License,Quality Improvement Plan,SEE DATA LTD,29730815,"36,000.00"
Department of Health,East London NHS Foundation Trust,06/03/2019,SLA Charges,Medical Directorate,IHEALTH LTD,29760403,"25,083.00"
Department of Health,East London NHS Foundation Trust,06/03/2019,Capital Charges,EF Wolfson House,G4S FACILITIES MANAGEMENT (UK) LTD,29802933,"89,921.48"
Department of Health,East London NHS Foundation Trust,06/03/2019,SLA Charges,ICT Team,VIRGIN MEDIA LTD,29803078,"110,208.02"
Department of Health,East London NHS Foundation Trust,06/03/2019,Building works,Estates,T&B (CONTRACTORS) LTD,29639912,"110,886.91"
Department of Health,East London NHS Foundation Trust,06/03/2019,Computer Hardware Purch,ICT Team,INSIGHT DIRECT (UK) LTD,29661597,"26,883.36"
Department of Health,East London NHS Foundation Trust,06/03/2019,Building works,Estates,KINGSWAY GROUP,29662480,"25,105.00"
Department of Health,East London NHS Foundation Trust,06/03/2019,Building works,Estates,BARRY MORGAN LTD,29664821,"97,000.00"
Department of Health,East London NHS Foundation Trust,08/03/2019,Capital charges,Estates,GH NEWHAM LTD,29803162,"485,838.39"
Department of Health,East London NHS Foundation Trust,08/03/2019,Computer Hardware Purch,Bedfordshire CHS IT,TPP,27772520,"105,581.83"
Department of Health,East London NHS Foundation Trust,08/03/2019,SLA Charges,Bedfordshire Directorate,BEDFORD HOSPITALS NHS TRUST,29760571,"25,957.31"
Department of Health,East London NHS Foundation Trust,08/03/2019,SLA Charges,Bedfordshire Directorate,BEDFORD HOSPITALS NHS TRUST,29760573,"31,144.11"
Department of Health,East London NHS Foundation Trust,08/03/2019,SLA Charges,Bedfordshire Directorate,BEDFORD HOSPITALS NHS TRUST,29713632,"31,144.11"
Department of Health,East London NHS Foundation Trust,08/03/2019,Exempt,B-Medical Staffing,ST HELENS & KNOWSLEY HOSPITALS NHS TRUST,29803023,"30,000.00"
Department of Health,East London NHS Foundation Trust,08/03/2019,Legal / Prof Fees,SBS Procurement,ON THE LEVEL PR LTD,29662542,"39,739.33"
Department of Health,East London NHS Foundation Trust,08/03/2019,Computer Software/License,ICT Team,INSIGHT DIRECT (UK) LTD,29692612,"26,677.20"
Department of Health,East London NHS Foundation Trust,08/03/2019,SLA Charges,Bedfordshire Directorate,CAMBRIDGESHIRE COMMUNITY SERVICES,29716675,"1,072,928.43"
Department of Health,East London NHS Foundation Trust,08/03/2019,SLA Charges,Bedfordshire Directorate,CAMBRIDGESHIRE COMMUNITY SERVICES,29716677,"131,648.33"
Department of Health,East London NHS Foundation Trust,08/03/2019,Exempt,Exempt,NHS TOWER HAMLETS CCG,29739153,"45,200.25"
Department of Health,East London NHS Foundation Trust,15/03/2019,Bldg/Eng Equip Maint/Rep,EF Luton and Beds,RYDON MAINTENANCE LTD,29873937,"31,036.10"
Department of Health,East London NHS Foundation Trust,15/03/2019,Building works,Estates,T&B (CONTRACTORS) LTD,28737697,"137,716.33"
Department of Health,East London NHS Foundation Trust,15/03/2019,Creche Expenses,Corporate Directorate,CHILDCARE VOUCHERS LTD,29874532,"36,882.46"
Department of Health,East London NHS Foundation Trust,15/03/2019,Furniture & Fittings,Newham Directorate,HILL-ROM LTD,29871856,"33,139.20"
Department of Health,East London NHS Foundation Trust,15/03/2019,Phone Rental and Calls,Data and Comms Services,BT PLC,29763761,"30,132.90"
Department of Health,East London NHS Foundation Trust,15/03/2019,SLA Charges,CHN Directorate,PATIENT FIRST SOCIAL ENTERPRISE,30054868,"61,500.00"
Department of Health,East London NHS Foundation Trust,15/03/2019,SLA Charges,Corporate Directorate,CAMBRIDGESHIRE COMMUNITY SERVICES,29873736,"169,409.75"
Department of Health,East London NHS Foundation Trust,15/03/2019,SLA Charges,EF Wolfson House,G4S FACILITIES MANAGEMENT (UK) LTD,29620250,"88,126.46"
Department of Health,East London NHS Foundation Trust,15/03/2019,SLA Charges,EF CH and Newham Comm Facil,G4S FACILITIES MANAGEMENT (UK) LTD,29650670,"56,915.63"
Department of Health,East London NHS Foundation Trust,15/03/2019,SLA Charges,EF John Howard Facilities,G4S FACILITIES MANAGEMENT (UK) LTD,29650673,"208,631.98"
Department of Health,East London NHS Foundation Trust,20/03/2019,Drug Supplies,Pharmacy Department,JANSSEN CILAG LTD,29943936,"64,979.20"
Department of Health,East London NHS Foundation Trust,20/03/2019,Computer Software/License,Pharmacy Department,JAC COMPUTER SERVICES LTD,28817272,"181,562.40"
Department of Health,East London NHS Foundation Trust,22/03/2019,Computer Software/License,RIO team,SERVELEC HEALTHCARE LTD,29853039,"29,748.00"
Department of Health,East London NHS Foundation Trust,22/03/2019,Legal / Prof Fees,Trust Board,SALFORD ROYAL HOSPITALS NHS FOUNDATION TRUST,29948099,"30,000.00"
Department of Health,East London NHS Foundation Trust,22/03/2019,SLA Charges,Corporate Directorate,BARTS HEALTH NHS TRUST,30001827,"27,500.00"
Department of Health,East London NHS Foundation Trust,22/03/2019,SLA Charges,ICT Team,ESSEX PARTNERSHIP UNIVERSITY NHS FOUNDATION TRUST,29947979,"60,107.93"
Department of Health,East London NHS Foundation Trust,22/03/2019,SLA Charges,Bedfordshire Directorate,CAMBRIDGESHIRE COMMUNITY SERVICES,30001848,"169,409.75"
Department of Health,East London NHS Foundation Trust,22/03/2019,Transport costs,Trustwide,GREEN TOMATO CARS LTD,29980700,"22,286.31"
Department of Health,East London NHS Foundation Trust,22/03/2019,Exempt,TC - MANAGEMENT TEAM,TJ SMITH & NEPHEW LTD,29835514,"28,800.00"
Department of Health,East London NHS Foundation Trust,22/03/2019,SLA Charges,Pharmacy Department,NHS BUSINESS SERVICES AUTHORITY,30001824,"110,856.28"
Department of Health,East London NHS Foundation Trust,22/03/2019,Building works,Estates,R & B DECORATORS & REFURBISHMENT,29756764,"41,523.16"
Department of Health,East London NHS Foundation Trust,23/03/2019,Travel costs,Trustwide,REDFERN TRAVEL LTD,30019656,"-38,818.35"
Department of Health,East London NHS Foundation Trust,26/03/2019,Photocopying costs,Corporate Directorate,XEROX (UK) LTD,29853057,"30,435.19"
Department of Health,East London NHS Foundation Trust,26/03/2019,Photocopying costs,Corporate Directorate,XEROX (UK) LTD,29803158,"64,216.76"
Department of Health,East London NHS Foundation Trust,26/03/2019,Rates,EF NCFMH,LONDON BOROUGH OF NEWHAM,29948006,"191,260.00"
Department of Health,East London NHS Foundation Trust,26/03/2019,Rates,EF C-Appleby Health Centre,LONDON BOROUGH OF NEWHAM,29948007,"63,404.00"
Department of Health,East London NHS Foundation Trust,26/03/2019,Rates,EF C-29 Romford Road,LONDON BOROUGH OF NEWHAM,29948003,"45,326.00"
Department of Health,East London NHS Foundation Trust,26/03/2019,CAMHS,Bedfordshire Directorate,CHUMS,29919252,"49,650.00"
Department of Health,East London NHS Foundation Trust,26/03/2019,Training Expenses,Corporate Directorate,KEYSTREAM HEALTHCARE RESOURCES LTD,29875258,"27,000.00"
Department of Health,East London NHS Foundation Trust,26/03/2019,Stationery and Office Supplies,Corporate Directorate,CLARES OFFICE SUPPLIES LTD,29803154,"27,630.76"
